{"text_format":"1","workbook":"xlsx","n_sheets":3,"sheets":["Indicadores","Base de Candidatos","Operacional"],"not_rendered":{"charts":4,"images":0,"macros":1,"external_links":0,"defined_names":3,"comments":0,"pivot_tables":5},"unopened":[],"bounds":{"document_bytes":16777216,"sheet_cells":100000,"rows_first":2000,"rows_last":500,"rows_between":2000,"halvings":0,"cell_chars":16384,"cell_head_chars":4096},"cells_cut":0,"cells_raw":0,"read":"whole","date_system":"1900"}

{"sheet":"Indicadores","index":0,"n_rows":6,"n_cols":18,"rows_kept":6,"cut":false,"hidden":false,"merged":[]}
[]
[]
[]
[]
[]
[null,null,null,null,null,null,null,null,null,null,null,null,null,null,null,null,null,";"]

{"sheet":"Base de Candidatos","index":1,"n_rows":18,"n_cols":13,"rows_kept":18,"cut":false,"hidden":false,"merged":[]}
[]
[]
[null,"Célula Editável","Célula Não Editável"]
[]
[null,"Nome do Candidato","Fonte","Observações","Vaga","Status","Pretensão Salarial","Data da Inscrição","Última atualização"," Última atualização","Nota Fit Cultural","Nota Aval Técnica","Tempo de Processo Seletivo"]
[null,"A","Linkedin",null,"Analista de Dados Jr","Triagem",4500,"2025-12-08","2026-01-28",{"$f":"IF(Patrimônio_Registrado[[#This Row],[Última atualização]]=\"\",\"\",TODAY()-Patrimônio_Registrado[[#This Row],[Última atualização]])","v":6},1,9,{"$f":"Patrimônio_Registrado[[#This Row],[Última atualização]]-Patrimônio_Registrado[[#This Row],[Data da Inscrição]]","v":51}]
[null,"B","Linkedin",null,"Analista de Dados Jr","Triagem",4700,"2025-12-14","2026-01-25",{"$f":"IF(Patrimônio_Registrado[[#This Row],[Última atualização]]=\"\",\"\",TODAY()-Patrimônio_Registrado[[#This Row],[Última atualização]])","v":9},6,3,{"$f":"Patrimônio_Registrado[[#This Row],[Última atualização]]-Patrimônio_Registrado[[#This Row],[Data da Inscrição]]","v":42}]
[null,"C","Linkedin",null,"Analista de Dados Jr","Triagem",3800,"2025-12-25","2026-01-20",{"$f":"IF(Patrimônio_Registrado[[#This Row],[Última atualização]]=\"\",\"\",TODAY()-Patrimônio_Registrado[[#This Row],[Última atualização]])","v":14},3,0,{"$f":"Patrimônio_Registrado[[#This Row],[Última atualização]]-Patrimônio_Registrado[[#This Row],[Data da Inscrição]]","v":26}]
[null,"D","Linkedin",null,"Analista de Dados Jr","Entrevista",5300,"2025-12-19","2026-01-23",{"$f":"IF(Patrimônio_Registrado[[#This Row],[Última atualização]]=\"\",\"\",TODAY()-Patrimônio_Registrado[[#This Row],[Última atualização]])","v":11},9,9,{"$f":"Patrimônio_Registrado[[#This Row],[Última atualização]]-Patrimônio_Registrado[[#This Row],[Data da Inscrição]]","v":35}]
[null,"E","Linkedin",null,"Analista de Dados Sênior","Contratado",9200,"2025-12-22","2026-01-20",{"$f":"IF(Patrimônio_Registrado[[#This Row],[Última atualização]]=\"\",\"\",TODAY()-Patrimônio_Registrado[[#This Row],[Última atualização]])","v":14},6,2,{"$f":"Patrimônio_Registrado[[#This Row],[Última atualização]]-Patrimônio_Registrado[[#This Row],[Data da Inscrição]]","v":29}]
[null,"F","Gupy",null,"Analista de Dados Sênior","Reprovado",10300,"2025-12-30","2026-01-26",{"$f":"IF(Patrimônio_Registrado[[#This Row],[Última atualização]]=\"\",\"\",TODAY()-Patrimônio_Registrado[[#This Row],[Última atualização]])","v":8},1,6,{"$f":"Patrimônio_Registrado[[#This Row],[Última atualização]]-Patrimônio_Registrado[[#This Row],[Data da Inscrição]]","v":27}]
[null,"G","Gupy",null,"Economista","Reprovado",9500,"2025-12-15","2026-01-24",{"$f":"IF(Patrimônio_Registrado[[#This Row],[Última atualização]]=\"\",\"\",TODAY()-Patrimônio_Registrado[[#This Row],[Última atualização]])","v":10},1,2,{"$f":"Patrimônio_Registrado[[#This Row],[Última atualização]]-Patrimônio_Registrado[[#This Row],[Data da Inscrição]]","v":40}]
[null,"H","Gupy",null,"Economista","Contratado",8700,"2025-12-27","2026-01-29",{"$f":"IF(Patrimônio_Registrado[[#This Row],[Última atualização]]=\"\",\"\",TODAY()-Patrimônio_Registrado[[#This Row],[Última atualização]])","v":5},4,10,{"$f":"Patrimônio_Registrado[[#This Row],[Última atualização]]-Patrimônio_Registrado[[#This Row],[Data da Inscrição]]","v":33}]
[null,"I","Contato Direto",null,"Engenheiro","Reprovado",9200,"2025-12-27","2026-01-21",{"$f":"IF(Patrimônio_Registrado[[#This Row],[Última atualização]]=\"\",\"\",TODAY()-Patrimônio_Registrado[[#This Row],[Última atualização]])","v":13},0,1,{"$f":"Patrimônio_Registrado[[#This Row],[Última atualização]]-Patrimônio_Registrado[[#This Row],[Data da Inscrição]]","v":25}]
[null,"J","Contato Direto",null,"Engenheiro","Reprovado",9800,"2025-12-22","2026-01-19",{"$f":"IF(Patrimônio_Registrado[[#This Row],[Última atualização]]=\"\",\"\",TODAY()-Patrimônio_Registrado[[#This Row],[Última atualização]])","v":15},7,7,{"$f":"Patrimônio_Registrado[[#This Row],[Última atualização]]-Patrimônio_Registrado[[#This Row],[Data da Inscrição]]","v":28}]
[null,"K","Indicação","Aaaaaa","Engenheiro","Contratado",9700,"2025-12-31","2026-01-25",{"$f":"IF(Patrimônio_Registrado[[#This Row],[Última atualização]]=\"\",\"\",TODAY()-Patrimônio_Registrado[[#This Row],[Última atualização]])","v":9},2,4,{"$f":"Patrimônio_Registrado[[#This Row],[Última atualização]]-Patrimônio_Registrado[[#This Row],[Data da Inscrição]]","v":25}]
[null,"L","Indicação","Bbbbbb","Arquiteto","Reprovado",9300,"2025-12-02","2026-01-30",{"$f":"IF(Patrimônio_Registrado[[#This Row],[Última atualização]]=\"\",\"\",TODAY()-Patrimônio_Registrado[[#This Row],[Última atualização]])","v":4},9,0,{"$f":"Patrimônio_Registrado[[#This Row],[Última atualização]]-Patrimônio_Registrado[[#This Row],[Data da Inscrição]]","v":59}]
[null,"M","Indicação","Cccccccc","Arquiteto","Reprovado",10300,"2025-12-25","2026-01-27",{"$f":"IF(Patrimônio_Registrado[[#This Row],[Última atualização]]=\"\",\"\",TODAY()-Patrimônio_Registrado[[#This Row],[Última atualização]])","v":7},1,7,{"$f":"Patrimônio_Registrado[[#This Row],[Última atualização]]-Patrimônio_Registrado[[#This Row],[Data da Inscrição]]","v":33}]

{"sheet":"Operacional","index":2,"n_rows":17,"n_cols":19,"rows_kept":17,"cut":false,"hidden":false,"merged":[]}
[]
[null,"Status",null,"Fonte",null,null,null,"Data Inicial de inscrições","2000-01-01"]
[null,"Triagem",null,"Linkedin",null,null,null,"Data Final de inscrições","2030-12-31"]
[null,"Entrevista",null,"Indicação"]
[null,"Teste Técnico",null,"Gupy"]
[null,"Proposta",null,"Contato Direto",null,null,null,"Rótulos de Linha","Média de Pretensão Salarial",null,"Rótulos de Linha","Contagem de Nome do Candidato",null,"Rótulos de Linha","Contagem de Nome do Candidato",null,"Média de Nota Fit Cultural",null,"Média de Nota Aval Técnica"]
[null,"Reprovado",null,null,null,null,null,"Analista de Dados Jr",4575,null,"Contratado",3,null,"2025-12-02",1,null,3.8461538461538463,null,4.615384615384615]
[null,"Contratado",null,null,null,null,null,"Analista de Dados Sênior",9750,null,"Entrevista",1,null,"2025-12-08",1]
[null,null,null,null,null,null,null,"Arquiteto",9800,null,"Reprovado",6,null,"2025-12-14",1]
[null,null,null,null,null,null,null,"Economista",9100,null,"Triagem",3,null,"2025-12-15",1]
[null,null,null,null,null,null,null,"Engenheiro",9566.6666666666661,null,"Total Geral",13,null,"2025-12-19",1]
[null,null,null,null,null,null,null,"Total Geral",8023.0769230769229,null,null,null,null,"2025-12-22",2]
[null,null,null,null,null,null,null,null,null,null,null,null,null,"2025-12-25",2]
[null,null,null,null,null,null,null,null,null,null,null,null,null,"2025-12-27",2]
[null,null,null,null,null,null,null,null,null,null,null,null,null,"2025-12-30",1]
[null,null,null,null,null,null,null,null,null,null,null,null,null,"2025-12-31",1]
[null,null,null,null,null,null,null,null,null,null,null,null,null,"Total Geral",13]